bitfinex-derivatives/quotes_ETHF0:USTF0_20250110
["timestamp","ask_amount","ask_price","bid_price","bid_amount"]
[1736494793980,2.77881082,3300.1,3299.4,3.2078]
[1736494794183,1.281,3300.4,3300.0,0.30306]
[1736494794583,1.281,3300.4,3299.9,3.2078]
[1736494794990,1.281,3300.4,3300.1,0.30305]
[1736494795191,1.281,3300.4,3300.0,0.30306]
[1736494795594,3.2078,3300.8,3300.2,0.30304]
[1736494795786,1.281,3300.6,3300.1,0.30305]
[1736494796190,0.30302,3300.5,3299.9,3.2078]
[1736494796386,1.281,3300.4,3299.9,3.2078]
[1736494796789,0.4543,3301.1,3299.5,3.2078]
[1736494796790,5.07171082,3300.3,3299.5,3.2078]
[1736494796994,0.30306,3300.1,3299.5,3.2078]
[1736494797287,3.2078,3299.9,3299.2,0.4456]
[1736494797487,0.30311,3299.6,3299.1,3.6446]
[1736494797894,2.16705082,3299.3,3299.1,3.2078]
[1736494798087,3.14491082,3299.3,3299.1,3.2078]
[1736494798287,0.30314,3299.2,3299.1,3.2078]
[1736494800486,3.44805082,3299.3,3299.1,3.2078]
[1736494800686,0.30314,3299.2,3299.1,3.2078]
[1736494800889,3.7078,3301.3,3299.1,10.07171082]
[1736494801083,0.30297,3301.0,3300.2,0.30304]
[1736494801286,3.7078,3301.3,3300.2,40.8]
[1736494801287,1.86391082,3300.5,3300.2,40.8]
[1736494801491,0.30304,3300.3,3300.2,40.8]
[1736494801890,0.30304,3300.3,3299.4,3.2078]
[1736494802294,0.30306,3300.1,3299.4,3.51091]
[1736494802492,0.30306,3300.1,3299.5,40.8]
[1736494802692,1.352,3300.0,3299.5,40.8]
[1736494803591,1.352,3300.0,3299.5,41.10311]
[1736494803789,1.352,3300.0,3299.5,40.8]
[1736494803999,1.352,3300.0,3299.4,3.51092]
[1736494804298,3.6697,3300.4,3300.0,0.30306]
[1736494804995,3.2078,3300.4,3299.9,40.8]
[1736494805189,2.25888224,3300.9,3300.3,0.30304]
[1736494805386,1.40181771,3300.8,3300.3,0.30304]
[1736494805596,1.40181771,3300.8,3300.2,3.51084]
[1736494805791,0.04981771,3300.7,3300.2,3.51084]
[1736494805989,0.04981771,3300.7,3300.3,0.30303]
[1736494806186,1.352,3300.8,3300.2,3.51084]
[1736494806395,1.352,3300.8,3300.2,3.2078]
[1736494806597,2.25888224,3300.9,3300.2,3.51084]
[1736494806792,1.40081553,3300.8,3300.2,3.51084]
[1736494806992,1.40081553,3300.8,3299.3,3.01671224]
[1736494806993,1.851,3301.3,3300.6,3.2078]
[1736494807302,1.851,3301.3,3300.8,0.30299]
[1736494807697,7.31768224,3301.3,3300.6,3.2078]
[1736494807998,0.30296,3301.1,3300.6,3.2078]
[1736494808202,0.04981252,3301.0,3300.6,3.2078]
[1736494808490,0.04980608,3301.2,3300.6,44.0078]
[1736494808693,0.04981112,3301.1,3300.6,44.3108]
[1736494808898,0.04981112,3301.1,3300.6,44.0078]
[1736494809392,0.04981112,3301.1,3300.7,0.303]
[1736494809700,0.04981112,3301.1,3300.6,44.0078]
[1736494809902,0.04981112,3301.1,3300.6,44.3108]
[1736494810298,1.40080608,3301.2,3300.8,0.30299]
[1736494810598,0.30297,3301.1,3300.6,3.2078]
[1736494810990,1.351,3301.2,3300.2,3.9388]
[1736494810991,0.303,3300.8,3300.2,3.9388]
[1736494811191,3.2078,3301.0,3300.2,3.6462]
[1736494811192,0.35281554,3300.7,3300.2,3.6462]
[1736494811491,2.25888224,3300.4,3299.9,3.2078]
[1736494811800,0.30306,3300.1,3299.9,3.2078]
[1736494812601,1.351,3300.3,3299.9,3.2078]
[1736494812900,0.30306,3300.0,3299.9,3.2078]
[1736494813302,4.5588,3300.3,3299.9,3.2078]
[1736494813500,0.30307,3300.0,3299.9,3.2078]
[1736494813696,0.35289859,3300.0,3299.9,3.2078]
[1736494814198,0.04982859,3300.0,3299.9,3.2078]
[1736494814392,4.5588,3300.3,3299.9,3.2078]
[1736494814592,0.30306,3300.1,3299.9,3.2078]
[1736494814792,4.5588,3300.3,3299.9,3.2078]
[1736494814997,0.30307,3300.0,3299.9,3.2078]
[1736494815204,0.30306,3300.1,3299.9,3.2078]
[1736494815410,0.30307,3300.0,3299.9,3.2078]
[1736494816004,0.04982879,3300.0,3299.9,3.2078]
[1736494816205,0.35289879,3300.0,3299.5,3.2078]
[1736494816502,0.30305,3300.2,3299.6,0.3031]
[1736494816699,0.04982818,3300.1,3299.7,0.30309]
[1736494816902,0.35288818,3300.1,3299.6,0.3031]
[1736494817103,0.30306,3300.1,3299.5,3.2078]
[1736494817309,0.30306,3300.1,3299.6,0.3031]
[1736494817904,0.35289812,3300.0,3299.5,3.51091]
[1736494818110,0.30306,3300.1,3299.5,3.51091]
[1736494819010,0.30306,3300.1,3299.5,3.2078]
[1736494819313,0.30306,3300.1,3299.5,3.5109]
[1736494820226,0.30307,3300.0,3299.9,3.2078]
[1736494820423,1.351,3300.3,3299.9,3.2078]
[1736494820626,0.30305,3300.2,3299.9,3.2078]
[1736494821820,1.65404,3300.3,3299.9,3.2078]
[1736494822220,1.65404,3300.3,3300.0,40.8]
[1736494822523,1.351,3300.3,3300.0,40.8]
[1736494822723,1.65404,3300.3,3299.9,3.2078]
[1736494822922,1.351,3300.3,3299.9,3.2078]
[1736494823128,1.65404,3300.3,3299.9,3.2078]
[1736494823327,0.30305,3300.2,3299.9,3.6631]
[1736494823524,0.30306,3300.1,3299.9,3.6631]
[1736494823723,0.30305,3300.2,3299.9,3.6631]
[1736494823931,1.351,3300.3,3299.9,3.6631]
[1736494824125,0.0498257,3300.2,3299.9,3.6631]
[1736494824427,1.351,3300.3,3299.9,3.6631]
[1736494824620,0.30307,3300.0,3299.9,3.6631]
[1736494825325,0.30306,3300.1,3299.9,3.6631]
[1736494825925,1.65405,3300.3,3299.9,3.6631]
[1736494826231,1.65404,3300.3,3299.9,3.6631]
[1736494826429,1.351,3300.3,3300.0,0.30306]
[1736494826629,1.351,3300.3,3300.1,0.30306]
[1736494826928,5.54508103,3301.2,3299.9,3.6631]
[1736494827124,5.54508103,3301.2,3300.5,0.30302]
[1736494827125,0.30299,3300.9,3300.5,0.30302]
[1736494827924,0.303,3300.8,3300.4,3.51083]
[1736494828720,1.351,3301.1,3300.4,3.2078]
[1736494829029,0.30298,3301.0,3300.4,3.2078]
[1736494829220,0.30298,3301.0,3300.6,0.30301]
[1736494829431,0.30298,3301.0,3300.7,0.438]
[1736494829727,1.351,3301.1,3300.7,41.238]
[1736494830031,0.30299,3300.8,3300.7,0.438]
[1736494830526,1.351,3300.9,3300.7,0.438]
[1736494830722,1.351,3300.9,3300.4,3.2078]
[1736494831332,1.351,3300.9,3300.6,0.303]
[1736494831627,1.351,3300.9,3300.5,41.10302]
[1736494831830,0.5,3301.3,3300.8,5.07168103]
[1736494832021,0.75707,3302.7,3301.2,3.2078]
[1736494832022,0.5,3301.7,3301.2,3.2078]
[1736494832231,0.5,3301.7,3301.6,3.2078]
[1736494832824,0.30294,3301.5,3301.0,0.2931]
[1736494833026,2.16681103,3301.5,3301.0,0.59607]
[1736494833230,2.16681103,3301.5,3301.0,0.2931]
[1736494833231,1.86388103,3301.5,3301.0,0.2931]
[1736494833434,2.16678103,3301.8,3301.3,0.30294]
[1736494833732,3.18388103,3301.8,3301.3,0.30294]
[1736494833928,3.48678103,3301.8,3301.2,3.51075]
[1736494834134,0.30291,3301.7,3301.2,3.51075]
[1736494834334,3.48678103,3301.8,3301.3,0.30294]
[1736494834529,1.32,3301.8,3301.2,3.2078]
[1736494834928,1.32,3301.8,3301.3,0.30294]
[1736494835123,4.1741,3302.2,3301.2,5.07168103]
[1736494835332,0.5,3303.0,3302.1,3.2078]
[1736494835630,0.04978625,3302.9,3302.2,0.7342]
[1736494835831,0.30282,3302.7,3302.2,1.03706]
[1736494836132,1.91366728,3302.9,3302.2,0.4413]
[1736494836334,0.30286,3302.2,3301.7,3.2078]
[1736494836531,1.86388103,3302.6,3301.7,3.2078]
[1736494836737,0.30288,3302.0,3301.7,3.2078]
[1736494836930,1.86388103,3302.3,3301.8,40.8]
[1736494836931,0.30287,3302.1,3301.8,40.8]
[1736494837240,0.4448,3302.2,3301.7,3.2078]
[1736494837529,0.30287,3302.1,3301.7,3.2078]
[1736494837732,0.30289,3302.0,3301.7,3.2078]
[1736494837937,0.30288,3302.1,3301.7,3.2078]
[1736494838332,1.7638,3302.2,3301.7,3.2078]
[1736494838638,0.3029,3301.8,3301.7,3.2078]
[1736494838938,0.30289,3301.9,3301.7,3.2078]
[1736494839137,4.9716,3302.2,3301.7,3.2078]
[1736494839336,0.04979587,3302.1,3301.7,3.2078]
[1736494839633,5.27447,3302.2,3301.9,0.30288]
[1736494839634,4.9716,3302.2,3301.9,0.30288]
[1736494839836,3.6526,3302.2,3301.7,3.2078]
[1736494840024,3.6526,3302.2,3301.7,3.5107]
[1736494840228,3.6526,3302.2,3301.8,0.3029]
[1736494840534,3.2078,3302.2,3302.0,0.30287]
[1736494840839,3.2078,3302.2,3301.7,3.2078]
[1736494840840,3.2078,3302.2,3302.1,0.4689]
[1736494842626,3.2078,3302.2,3301.7,3.2078]
[1736494842830,0.3029,3301.8,3301.7,3.2078]
[1736494843034,1.319,3301.8,3301.7,3.2078]
[1736494844835,1.6219,3301.8,3301.7,3.2078]
[1736494845425,1.319,3301.8,3301.7,3.2078]
[1736494845730,1.6219,3301.8,3301.7,3.2078]
[1736494845928,1.319,3301.8,3301.7,3.2078]
[1736494846128,1.6219,3301.8,3301.7,3.2078]
[1736494846334,1.319,3301.8,3301.7,3.2078]
[1736494846625,3.2078,3302.8,3301.7,10.07168103]
[1736494846829,0.04978783,3302.7,3301.9,3.2078]
[1736494847129,0.04978568,3302.7,3302.0,40.8]
[1736494847328,0.30285,3302.4,3302.0,40.8]
[1736494847631,0.30285,3302.4,3301.9,3.2078]
[1736494847935,1.86388103,3302.7,3301.9,3.2078]
[1736494847936,0.4366,3302.3,3301.9,3.2078]
[1736494848637,0.4366,3302.3,3301.9,44.31068]
[1736494849039,0.73946,3302.3,3301.9,44.0078]
[1736494849241,1.17146,3302.3,3301.9,44.0078]
[1736494849736,0.8686,3302.3,3301.9,3.2078]
[1736494850240,0.30288,3302.0,3301.6,41.2518]
[1736494850438,0.30288,3302.0,3301.6,0.4518]
[1736494851038,0.30286,3302.2,3301.6,0.4518]
[1736494851238,0.04979555,3302.1,3301.6,0.4518]
[1736494851440,0.30289,3301.9,3301.6,0.4518]
[1736494851638,0.30289,3302.0,3301.6,0.4518]
[1736494851834,3.2078,3303.2,3301.9,5.07168103]
[1736494852037,0.5,3303.4,3302.8,3.2078]
[1736494852234,0.04977623,3303.3,3302.8,3.2078]
[1736494852541,0.80276,3303.4,3302.8,3.5106]
[1736494852738,0.80276,3303.4,3302.8,3.2078]
[1736494852938,0.5,3303.4,3302.9,0.3028]
[1736494853240,0.5,3303.5,3302.8,3.2078]
[1736494853440,0.04977243,3303.4,3302.8,3.2078]
[1736494853737,3.2078,3305.7,3304.5,4.32]
[1736494854042,3.2078,3305.7,3302.4,0.7538]
[1736494854043,0.04975811,3305.6,3305.4,1.86388103]
[1736494854232,0.04974022,3305.6,3305.5,0.30256]
[1736494854536,3.2078,3306.5,3305.5,40.8]
[1736494854748,0.04972982,3306.4,3306.3,3.2078]
[1736494854936,0.35220982,3306.4,3306.3,3.2078]
[1736494855243,0.35220982,3306.4,3305.8,3.2078]
[1736494855244,0.04972982,3306.4,3305.8,3.2078]
[1736494855548,0.3025,3306.2,3305.8,3.2078]
[1736494855734,0.30251,3306.1,3305.8,3.2078]
[1736494856042,0.4401,3306.3,3305.8,3.2078]
[1736494856043,1.392,3306.2,3305.8,3.2078]
[1736494856233,0.35225414,3306.0,3305.8,3.2078]
[1736494856440,0.30252,3306.0,3305.8,3.2078]
[1736494856637,1.392,3306.2,3305.8,3.2078]
[1736494856935,0.30252,3306.0,3305.8,3.2078]
[1736494857141,1.86388103,3306.0,3305.4,3.2078]
[1736494857335,4.5998,3306.2,3305.4,3.2078]
[1736494857336,0.30256,3305.5,3305.4,3.2078]
[1736494857731,0.30256,3305.6,3305.4,3.2078]
[1736494858242,0.30256,3305.5,3305.4,3.2078]
[1736494858439,0.77216,3305.5,3305.4,3.2078]
[1736494859443,0.3026,3305.1,3305.0,3.2078]
[1736494859942,0.30259,3305.3,3305.0,3.2078]
[1736494860244,0.4696,3305.5,3305.0,3.2078]
[1736494860839,0.77216,3305.5,3305.4,3.2078]
[1736494861240,0.4696,3305.5,3305.4,3.2078]
[1736494861543,1.391,3305.9,3305.4,3.2078]
[1736494861736,0.30255,3305.6,3305.4,3.2078]
[1736494862336,0.4403,3306.1,3305.4,3.2078]
[1736494862337,0.30254,3305.7,3305.4,3.2078]
[1736494862536,1.391,3306.0,3305.4,3.2078]
[1736494862834,1.69352,3306.0,3305.4,3.2078]
[1736494863034,0.30255,3305.7,3305.4,3.2078]
[1736494863444,3.2078,3306.2,3305.4,3.2078]
[1736494863742,3.2078,3306.2,3305.4,3.51036]
[1736494864041,0.30251,3306.1,3305.5,0.1964]
[1736494864233,1.8313,3306.7,3305.8,3.2078]
[1736494864536,0.30249,3306.3,3306.2,3.2078]
[1736494866640,0.30252,3305.9,3305.8,3.2078]
[1736494868137,0.30252,3305.9,3304.9,2.69476657]
[1736494868138,3.2078,3305.9,3304.8,3.2078]
[1736494868339,2.39215657,3305.7,3304.8,3.2078]
[1736494868740,0.3026,3305.2,3304.8,3.2078]
[1736494868945,2.39215657,3305.7,3304.8,3.2078]
[1736494869143,0.3026,3305.1,3304.8,3.2078]
[1736494869346,0.30259,3305.3,3304.8,3.2078]
[1736494869641,0.30258,3305.3,3304.8,3.2078]
[1736494869844,4.5988,3305.9,3305.2,3.2078]
[1736494869845,3.2078,3305.9,3305.2,3.2078]
[1736494870045,0.4633,3305.8,3305.2,3.2078]
[1736494870236,0.30258,3305.3,3305.2,3.2078]
[1736494871849,1.39,3305.3,3304.8,3.2078]
[1736494872052,0.30262,3304.9,3304.8,3.2078]
[1736494874344,1.39,3305.3,3304.8,3.2078]
[1736494874643,0.30261,3305.0,3304.8,3.2078]
[1736494874847,0.30261,3304.9,3304.8,3.2078]
[1736494876448,1.39,3305.3,3304.8,3.2078]
[1736494876749,0.30261,3305.0,3304.8,3.2078]
[1736494877248,1.39,3305.3,3304.8,3.2078]
[1736494877449,0.30261,3304.9,3304.8,3.2078]
[1736494878841,0.30261,3304.9,3304.6,40.8]
[1736494879042,0.30265,3304.5,3304.4,3.2078]
[1736494879242,1.391,3304.5,3304.4,3.2078]
[1736494879844,1.69365,3304.5,3304.4,3.2078]
[1736494881549,0.30265,3304.5,3304.4,3.55997992]
[1736494881748,0.30265,3304.5,3304.4,3.2078]
[1736494883056,2.16148191,3304.5,3304.4,3.2078]
[1736494884350,0.30269,3304.1,3304.0,3.2078]
[1736494885257,1.66769,3304.1,3304.0,3.2078]
[1736494885559,1.66769,3304.1,3303.6,3.2078]
[1736494885560,0.30272,3303.7,3303.6,3.2078]
[1736494887255,0.4486,3304.0,3303.6,3.2078]
[1736494887548,15.11827,3307.7,3304.3,0.30267]
[1736494887549,0.30263,3304.8,3304.3,0.30267]
[1736494887753,1.366,3305.3,3304.7,3.2078]
[1736494887754,0.30259,3305.2,3304.7,3.2078]
[1736494888052,0.30262,3304.9,3304.7,3.2078]
[1736494888251,0.30262,3304.8,3304.7,3.2078]
[1736494888452,0.30262,3304.8,3304.7,44.0078]
[1736494889255,0.30262,3304.8,3304.7,3.2078]
[1736494889945,1.66862,3304.8,3304.7,3.2078]
[1736494890349,0.30263,3304.7,3304.3,3.2078]
[1736494890550,0.30266,3304.4,3304.3,3.2078]
[1736494892959,0.4464,3305.2,3304.3,3.2078]
[1736494893163,0.3026,3305.1,3304.7,3.2078]
[1736494893461,1.8332,3305.2,3304.7,3.2078]
[1736494893660,1.8332,3305.2,3304.8,40.8]
[1736494893961,0.3026,3305.1,3304.8,40.8]
[1736494894157,0.3026,3305.1,3304.7,3.2078]
[1736494894359,1.8332,3305.2,3304.7,3.2078]
[1736494894658,2.13579,3305.2,3304.8,40.8]
[1736494895553,1.8332,3305.2,3304.8,40.8]
[1736494895961,2.13579,3305.2,3304.8,41.231]
[1736494896159,1.366,3305.2,3304.8,41.231]
[1736494896354,11.47655448,3305.4,3305.1,3.2078]
[1736494896355,0.30258,3305.3,3305.1,3.2078]
[1736494898352,12.84155448,3305.4,3305.1,3.2078]
[1736494898560,0.30259,3305.2,3305.1,3.2078]
[1736494898758,0.30258,3305.3,3305.1,3.2078]
[1736494899262,13.14413448,3305.4,3305.1,3.2078]
[1736494899660,5.61431448,3306.2,3305.1,3.2078]
[1736494899854,0.04973528,3306.0,3305.6,3.2078]
[1736494900062,1.41473528,3306.0,3305.6,3.51034]
[1736494900262,1.66752,3306.0,3305.6,3.2078]
[1736494900565,0.30253,3305.8,3305.6,3.2078]
[1736494901456,1.66752,3306.0,3305.6,3.2078]
[1736494901659,1.365,3306.0,3305.6,3.51034]
[1736494903161,1.365,3306.0,3305.6,3.2078]
[1736494903362,1.365,3306.0,3305.6,3.51035]
[1736494903565,0.30251,3306.1,3305.6,3.51035]
[1736494904660,1.66751,3306.1,3305.6,3.51035]
[1736494905062,0.30251,3306.1,3305.6,3.51035]
[1736494905267,1.66751,3306.1,3305.6,3.51035]
[1736494905468,0.4583,3306.4,3306.0,3.2078]
[1736494905763,0.3025,3306.2,3306.0,3.2078]
[1736494906271,2.12578,3306.4,3306.0,3.2078]
[1736494906572,0.30249,3306.3,3306.0,3.2078]
[1736494906963,1.8233,3306.4,3306.0,3.2078]
[1736494907166,2.12578,3306.4,3306.0,3.2078]
[1736494907366,0.30249,3306.3,3306.0,3.2078]
[1736494907666,1.8233,3306.4,3306.0,3.2078]
[1736494907867,2.12578,3306.4,3306.0,3.2078]
[1736494908369,2.39455448,3306.2,3306.0,3.2078]
[1736494908574,0.04972971,3306.1,3305.6,3.2078]
[1736494908769,0.30253,3305.9,3305.6,3.2078]
[1736494909066,1.66753,3305.9,3305.6,3.2078]
[1736494909272,1.365,3305.9,3305.6,3.2078]
[1736494909465,1.85724719,3306.2,3305.8,0.30253]
[1736494909666,1.85724719,3306.2,3305.6,3.2078]
[1736494909967,1.85724719,3306.2,3305.9,0.30252]
[1736494910168,2.15974719,3306.2,3305.8,0.30253]
[1736494910364,1.85724719,3305.9,3305.6,3.2078]
[1736494910562,2.15977719,3305.9,3305.6,3.2078]
[1736494910869,0.30254,3305.8,3305.6,3.2078]
[1736494911175,2.11944,3305.8,3305.6,3.2078]
[1736494911367,1.8169,3305.8,3305.6,3.2078]
[1736494911666,0.30254,3305.7,3305.6,3.2078]
[1736494912069,2.11943,3305.8,3305.6,3.2078]
[1736494912265,2.11944,3305.8,3305.6,3.2078]
[1736494912459,1.8169,3305.8,3305.6,3.2078]
[1736494912667,0.30254,3305.7,3305.6,3.2078]
[1736494912969,0.82137524,3305.7,3305.6,3.2078]
[1736494913368,0.82137602,3305.7,3305.6,3.2078]
[1736494913760,0.04973602,3305.7,3305.6,3.51035]
[1736494913970,1.345,3306.1,3305.9,0.30252]
[1736494914176,1.345,3306.1,3306.0,3.2078]
[1736494914679,1.345,3306.1,3306.0,44.0078]
[1736494916169,1.64751,3306.1,3306.0,3.2078]
[1736494916366,1.345,3306.1,3306.0,3.2078]
[1736494916764,0.3025,3306.2,3306.0,3.2078]
[1736494917073,1.6475,3306.2,3306.0,3.2078]
[1736494917274,0.30248,3306.4,3306.0,3.51031]
[1736494917473,1.345,3306.4,3306.1,0.3025]
[1736494917670,1.345,3306.4,3306.1,0.4646]
[1736494917975,0.30251,3306.1,3306.0,3.2078]
[1736494918869,0.35223641,3306.1,3306.0,3.2078]
[1736494919966,0.35223641,3306.1,3305.5,40.8]
[1736494919967,0.30254,3305.7,3305.6,3.2078]
[1736494921168,0.35227337,3305.7,3305.6,3.2078]
[1736494922977,1.345,3305.7,3305.6,3.2078]
[1736494923473,1.345,3305.9,3305.7,0.30254]
[1736494923674,1.345,3305.9,3305.7,0.4346]
[1736494923874,0.4441,3306.4,3305.7,0.4346]
[1736494923875,1.7891,3306.4,3305.7,0.4346]
[1736494924078,1.345,3306.4,3306.2,3.2078]
[1736494925775,0.4441,3306.8,3306.2,3.2078]
[1736494925776,1.345,3306.5,3306.2,3.2078]
[1736494925979,1.345,3306.5,3306.2,3.51029]
[1736494926174,1.345,3306.5,3306.2,3.2078]
[1736494927167,1.64747,3306.5,3306.2,3.2078]
[1736494927882,1.345,3306.5,3306.2,3.2078]
[1736494928181,0.30248,3306.4,3306.2,3.2078]
[1736494928380,0.30249,3306.3,3306.2,3.2078]
[1736494929077,1.345,3306.4,3306.2,3.2078]
[1736494929577,0.30249,3306.3,3306.2,3.2078]
[1736494929879,1.64749,3306.4,3306.2,3.2078]
[1736494930770,1.85724719,3306.3,3306.2,3.2078]
[1736494931078,2.20946222,3306.3,3305.8,3.2078]
[1736494931377,2.15973719,3306.3,3305.8,3.2078]
[1736494931681,1.85724719,3306.3,3305.8,3.51033]
[1736494931870,1.85724719,3306.3,3306.0,0.30251]
[1736494931871,0.04972514,3306.2,3306.0,0.30251]
[1736494932072,1.85724719,3306.3,3305.9,0.30252]
[1736494932073,1.345,3306.1,3305.9,0.30252]
[1736494932281,1.345,3306.1,3305.8,3.2078]
[1736494932472,1.345,3306.1,3306.0,0.30252]
[1736494932975,1.345,3306.4,3305.8,3.2078]
[1736494933176,1.345,3306.4,3306.3,3.51029]
[1736494934669,1.85724719,3306.6,3306.3,3.51029]
[1736494934872,3.20224719,3306.6,3306.3,3.51029]
[1736494935169,2.15965719,3307.2,3306.8,0.30244]
[1736494935376,10.427,3307.1,3306.8,3.51024]
[1736494935677,1.64742,3307.1,3306.8,3.2078]
[1736494936076,1.42313,3307.0,3306.8,3.2078]
[1736494936780,2.76813,3307.0,3306.8,3.2078]
[1736494937077,1.42313,3307.0,3306.8,3.2078]
[1736494937277,2.76813,3307.0,3306.8,3.2078]
[1736494937777,0.00210777,3306.9,3306.8,3.2078]
[1736494938876,0.00210777,3306.9,3306.8,3.51024]
[1736494939080,2.76813,3307.0,3306.9,0.30243]
[1736494939081,0.04893,3307.0,3306.9,0.30243]
[1736494939379,0.00249249,3308.0,3307.6,0.30237]
[1736494939582,0.00249249,3308.0,3307.7,3.2078]
[1736494939784,0.05218849,3308.0,3307.7,3.2078]
[1736494939970,0.00249249,3308.0,3307.7,3.2078]
[1736494940175,2.15958719,3307.9,3307.7,3.2078]
[1736494940374,1.85724719,3307.9,3307.7,3.2078]
[1736494941576,0.00249249,3308.0,3307.7,3.2078]
[1736494941780,1.345,3307.9,3307.7,3.2078]
[1736494942577,1.345,3307.9,3307.8,3.2078]
[1736494942777,0.00249249,3308.0,3307.8,3.2078]
[1736494942982,1.34749249,3308.0,3307.8,3.2078]
[1736494943178,1.64982249,3308.0,3307.8,3.2078]
[1736494943379,1.34749249,3308.0,3307.8,3.2078]
[1736494943686,1.64982249,3308.0,3307.8,3.2078]
[1736494943983,1.34749249,3308.0,3307.8,3.2078]
[1736494945281,0.00249249,3308.0,3307.8,3.2078]
[1736494945482,0.0521888,3308.0,3307.8,3.2078]
[1736494945783,0.00249249,3308.0,3307.8,3.2078]
[1736494946380,0.05218815,3308.0,3307.8,3.2078]
[1736494947287,0.05218815,3308.0,3307.8,3.51015]
[1736494947487,0.05218815,3308.0,3307.9,0.77274]
[1736494948180,0.05218815,3308.0,3307.9,0.4704]
[1736494948384,0.05218815,3308.0,3307.8,3.2078]
[1736494949888,0.05218815,3308.0,3307.8,3.51015]
[1736494950184,0.05218815,3308.0,3307.8,3.2078]
[1736494950782,2.84999595,3308.4,3308.3,0.3023]
[1736494951086,2.13269595,3308.4,3308.3,3.5101]
[1736494951286,2.13269595,3308.4,3308.3,8.5101]
[1736494951287,0.9375303,3308.4,3308.3,8.5101]
[1736494951581,3.2078,3310.0,3308.3,49.0078]
[1736494951787,1.85724719,3310.2,3308.3,49.0078]
[1736494951788,1.323,3310.1,3309.5,3.2078]
[1736494951979,16.14455437,3310.5,3309.9,3.2078]
[1736494952382,0.04927453,3310.4,3309.9,3.2078]
[1736494952589,0.61721572,3310.2,3309.9,3.2078]
[1736494952991,2.47446291,3310.2,3309.9,3.2078]
[1736494953186,0.4633,3310.1,3309.9,3.2078]
[1736494953495,0.30217,3309.8,3309.3,3.2078]
[1736494953695,0.30216,3309.9,3309.3,3.2078]
[1736494953984,0.04928481,3309.8,3309.3,3.2078]
[1736494954189,2.68853178,3309.9,3309.3,3.2078]
[1736494954485,2.38637178,3309.9,3309.3,3.51001]
[1736494954733,0.61721572,3309.6,3309.3,44.0078]
[1736494954886,0.61721572,3309.6,3309.3,3.2078]
[1736494955585,0.61721572,3309.5,3309.3,3.2078]
[1736494955783,0.61721572,3309.5,3309.4,0.3022]
[1736494956088,0.61721572,3309.5,3309.4,0.747]
[1736494956585,0.61721572,3309.5,3309.4,0.4448]
[1736494956984,0.61721572,3309.5,3309.3,3.2078]
[1736494957689,0.30224,3309.1,3308.9,3.2078]
[1736494958085,2.38741572,3309.4,3308.9,3.2078]
[1736494958086,0.441,3309.3,3308.9,3.2078]
[1736494958289,0.30223,3309.2,3308.9,3.2078]
[1736494958589,0.441,3309.3,3308.9,3.2078]
[1736494958590,0.30223,3309.1,3308.9,3.2078]
[1736494958791,0.61721572,3309.0,3308.9,3.2078]
[1736494959184,0.61721572,3309.0,3308.9,3.51005]
[1736494959387,9.075,3311.4,3308.9,3.51005]
[1736494959388,3.2078,3311.3,3308.9,8.2078]
[1736494959583,5.59417178,3312.6,3311.0,2.38637178]
[1736494959784,5.59417178,3312.6,3309.9,2.38637178]
[1736494959785,0.4548,3312.2,3311.8,3.2078]
[1736494959983,2.38637178,3313.0,3311.8,44.0078]
[1736494960193,0.30192,3312.5,3312.2,3.2078]
[1736494960489,2.38637178,3312.6,3312.2,3.2078]
[1736494961594,3.82137178,3312.6,3312.2,3.2078]
[1736494961793,1.435,3312.6,3312.2,3.2078]
[1736494962194,2.38637178,3313.0,3312.2,3.2078]
[1736494962382,1.435,3312.9,3312.2,3.2078]
[1736494963291,3.2078,3313.2,3312.6,3.2078]
[1736494964085,1.435,3313.1,3312.6,3.2078]
[1736494964288,3.6613,3313.2,3312.6,3.2078]
[1736494964489,1.435,3313.1,3312.6,3.2078]
[1736494964888,2.38637178,3313.0,3312.6,3.2078]
[1736494965184,3.2078,3312.9,3312.2,3.2078]
[1736494965394,0.30193,3312.5,3312.2,3.2078]
[1736494965590,3.2078,3312.9,3312.2,3.2078]
[1736494965891,3.50969,3312.9,3312.2,3.2078]
[1736494966095,3.2078,3312.9,3312.2,3.2078]
[1736494966590,0.30194,3312.3,3312.2,3.2078]
[1736494966784,0.30197,3312.1,3311.7,3.2078]
[1736494967100,3.2078,3312.7,3311.8,0.30199]
[1736494967391,1.434,3312.6,3312.1,3.2078]
[1736494967697,0.4583,3312.9,3312.1,3.2078]
[1736494967893,3.2078,3313.4,3312.6,0.30192]
[1736494968196,3.2078,3313.4,3312.5,3.50972]
[1736494968396,3.50965,3313.4,3312.5,3.2078]
[1736494968596,3.2078,3313.4,3312.5,3.50973]
[1736494968891,3.50965,3313.4,3312.5,3.2078]
[1736494969392,0.30189,3312.9,3312.5,3.2078]
[1736494969590,0.4596,3313.3,3312.5,3.2078]
[1736494969890,0.76146,3313.3,3312.5,3.2078]
[1736494970091,0.30187,3313.1,3312.5,3.2078]
[1736494970491,0.30191,3312.8,3312.1,3.2078]
[1736494970798,1.73591,3312.7,3312.1,3.2078]
[1736494970994,1.434,3312.7,3312.1,3.2078]
[1736494971292,1.73591,3312.7,3312.1,3.2078]
[1736494971495,0.30193,3312.5,3312.1,3.2078]
[1736494971696,3.2078,3312.5,3311.7,0.4749]
[1736494971893,3.2078,3312.6,3311.7,0.4749]
[1736494972198,3.2078,3313.0,3312.2,3.2078]